[Event "Titled Tuesday Blitz October 31 Late 2023"]
[White "Ibadov, Dashgyn"]
[Black "Oparin, Grigoriy"]
[WhiteFideId "24107514"]
[BlackFideId "24125890"]
[WhiteElo "2600"]
[BlackElo "2964"]
[Result "0-1"]
[Round "4"]
[TimeControl "180+1"]
[Date "2023.10.31"]
[WhiteClock "0:00:00"]
[BlackClock "0:01:39"]
[Board "29"]

1. e4 {[%clk 0:03:00]}  c5 {[%clk 0:03:00]} 2. Nf3 {[%clk 0:03:00]}  Nc6 {[%clk 0:03:00]} 3. Bb5 {[%clk 0:03:00]}  e5 {[%clk 0:03:00]} 4. O-O {[%clk 0:02:55]}  Bd6 {[%clk 0:03:00]} 5. c3 {[%clk 0:02:54]}  a6 {[%clk 0:02:56]} 6. Ba4 {[%clk 0:02:54]}  b5 {[%clk 0:02:55]} 7. Bc2 {[%clk 0:02:54]}  Nge7 {[%clk 0:02:55]} 8. d4 {[%clk 0:02:48]}  O-O {[%clk 0:02:53]} 9. dxe5 {[%clk 0:02:41]}  Nxe5 {[%clk 0:02:54]} 10. Nxe5 {[%clk 0:02:41]}  Bxe5 {[%clk 0:02:54]} 11. f4 {[%clk 0:02:41]}  Bc7 {[%clk 0:02:53]} 12. Nd2 {[%clk 0:02:37]}  d5 {[%clk 0:02:47]} 13. Nf3 {[%clk 0:02:29]}  dxe4 {[%clk 0:02:38]} 14. Bxe4 {[%clk 0:02:26]}  Qxd1 {[%clk 0:02:39]} 15. Rxd1 {[%clk 0:02:25]}  Rb8 {[%clk 0:02:39]} 16. Be3 {[%clk 0:02:23]}  Bb6 {[%clk 0:02:38]} 17. a4 {[%clk 0:02:06]}  Bf5 {[%clk 0:02:37]} 18. Bxf5 {[%clk 0:01:59]}  Nxf5 {[%clk 0:02:38]} 19. Bf2 {[%clk 0:01:59]}  b4 {[%clk 0:02:35]} 20. a5 {[%clk 0:01:56]}  Ba7 {[%clk 0:02:32]} 21. Rd5 {[%clk 0:01:54]}  g6 {[%clk 0:02:18]} 22. g4 {[%clk 0:01:52]}  Nh6 {[%clk 0:02:17]} 23. h3 {[%clk 0:01:48]}  bxc3 {[%clk 0:02:17]} 24. bxc3 {[%clk 0:01:47]}  Rb3 {[%clk 0:02:18]} 25. Bxc5 {[%clk 0:01:41]}  Rb5 {[%clk 0:02:14]} 26. Bxa7 {[%clk 0:01:36]}  Rxd5 {[%clk 0:02:14]} 27. Bd4 {[%clk 0:01:32]}  Rb8 {[%clk 0:02:00]} 28. Ne5 {[%clk 0:01:25]}  Rb7 {[%clk 0:01:50]} 29. Kg2 {[%clk 0:01:21]}  f6 {[%clk 0:01:50]} 30. Nc6 {[%clk 0:01:15]}  Kf7 {[%clk 0:01:50]} 31. Bb6 {[%clk 0:00:57]}  Rbd7 {[%clk 0:01:49]} 32. Nd4 {[%clk 0:00:49]}  Ng8 {[%clk 0:01:48]} 33. Rd1 {[%clk 0:00:37]}  Ne7 {[%clk 0:01:48]} 34. c4 {[%clk 0:00:31]}  R5d6 {[%clk 0:01:48]} 35. Bc5 {[%clk 0:00:30]}  Nc6 {[%clk 0:01:48]} 36. Bxd6 {[%clk 0:00:16]}  Rxd6 {[%clk 0:01:48]} 37. Nxc6 {[%clk 0:00:16]}  Rxd1 {[%clk 0:01:49]} 38. Nb4 {[%clk 0:00:13]}  Ra1 {[%clk 0:01:49]} 39. Nxa6 {[%clk 0:00:12]}  Rxa5 {[%clk 0:01:49]} 40. Nc7 {[%clk 0:00:09]}  Rc5 {[%clk 0:01:42]} 41. Nb5 {[%clk 0:00:09]}  Ke7 {[%clk 0:01:42]} 42. Na3 {[%clk 0:00:08]}  Ra5 {[%clk 0:01:42]} 43. Nb5 {[%clk 0:00:07]}  Ra2+ {[%clk 0:01:40]} 44. Kg3 {[%clk 0:00:06]}  Rc2 {[%clk 0:01:41]} 45. g5 {[%clk 0:00:01]}  fxg5 {[%clk 0:01:39]} 46. fxg5 {[%clk 0:00:02]}  Rxc4 {[%clk 0:01:39]} 47. h4 {[%clk 0:00:02]}  Rb4 {[%clk 0:01:39]} 48. Na7 {[%clk 0:00:00]}  Kd7 {[%clk 0:01:39]} 0-1


[Site "https://www.chess.com"]

[Event "Titled Tuesday Blitz October 31 Late 2023"]
[White "Daneshvar, Bardiya"]
[Black "Bartel, Michal"]
[WhiteFideId "12576468"]
[BlackFideId "1119257"]
[WhiteElo "2945"]
[BlackElo "2600"]
[Result "1-0"]
[Round "4"]
[TimeControl "180+1"]
[Date "2023.10.31"]
[WhiteClock "0:02:13"]
[BlackClock "0:01:38"]
[Board "30"]

1. b3 {[%clk 0:03:00]}  d5 {[%clk 0:02:58]} 2. Bb2 {[%clk 0:03:01]}  Bf5 {[%clk 0:02:59]} 3. d3 {[%clk 0:02:55]}  Nf6 {[%clk 0:02:57]} 4. Nd2 {[%clk 0:02:56]}  Nbd7 {[%clk 0:02:57]} 5. g3 {[%clk 0:02:56]}  e6 {[%clk 0:02:56]} 6. Bg2 {[%clk 0:02:57]}  Bc5 {[%clk 0:02:54]} 7. e4 {[%clk 0:02:57]}  Bg6 {[%clk 0:02:49]} 8. Nh3 {[%clk 0:02:56]}  c6 {[%clk 0:02:47]} 9. O-O {[%clk 0:02:56]}  O-O {[%clk 0:02:44]} 10. Nf4 {[%clk 0:02:56]}  a5 {[%clk 0:02:42]} 11. e5 {[%clk 0:02:54]}  Ne8 {[%clk 0:02:41]} 12. d4 {[%clk 0:02:54]}  Be7 {[%clk 0:02:40]} 13. Nxg6 {[%clk 0:02:53]}  hxg6 {[%clk 0:02:37]} 14. c4 {[%clk 0:02:53]}  Nc7 {[%clk 0:02:33]} 15. h4 {[%clk 0:02:52]}  c5 {[%clk 0:02:31]} 16. h5 {[%clk 0:02:51]}  cxd4 {[%clk 0:02:30]} 17. hxg6 {[%clk 0:02:50]}  fxg6 {[%clk 0:02:30]} 18. cxd5 {[%clk 0:02:51]}  Nxe5 {[%clk 0:02:26]} 19. dxe6 {[%clk 0:02:51]}  Nxe6 {[%clk 0:02:25]} 20. Qe2 {[%clk 0:02:49]}  Qd6 {[%clk 0:02:17]} 21. Rae1 {[%clk 0:02:40]}  Bf6 {[%clk 0:02:16]} 22. Nc4 {[%clk 0:02:35]}  Nxc4 {[%clk 0:02:13]} 23. Qxc4 {[%clk 0:02:36]}  Rfe8 {[%clk 0:02:10]} 24. Bxb7 {[%clk 0:02:31]}  Rad8 {[%clk 0:02:07]} 25. Be4 {[%clk 0:02:19]}  Rc8 {[%clk 0:01:56]} 26. Qb5 {[%clk 0:02:16]}  Ng5 {[%clk 0:01:50]} 27. Bd5+ {[%clk 0:02:13]}  Kh7 {[%clk 0:01:50]} 28. Kg2 {[%clk 0:02:13]}  Rxe1 {[%clk 0:01:44]} 29. Rxe1 {[%clk 0:02:13]}  Nh3 {[%clk 0:01:38]} 30. Rh1 {[%clk 0:02:12]}  g5 {[%clk 0:01:37]} 31. Rxh3+ {[%clk 0:02:12]}  Kg6 {[%clk 0:01:38]} 32. Qd3# {[%clk 0:02:13]} 1-0


[Site "https://www.chess.com"]

[Event "Titled Tuesday Blitz October 31 Late 2023"]
[White "Khismatullin, Denis"]
[Black "Roberson, Peter T"]
[WhiteFideId "4142578"]
[BlackFideId "412384"]
[WhiteElo "2933"]
[BlackElo "2599"]
[Result "1-0"]
[Round "4"]
[TimeControl "180+1"]
[Date "2023.10.31"]
[WhiteClock "0:01:39"]
[BlackClock "0:00:22"]
[Board "31"]

1. e4 {[%clk 0:03:00]}  e6 {[%clk 0:02:57]} 2. d4 {[%clk 0:02:59]}  d5 {[%clk 0:02:58]} 3. exd5 {[%clk 0:02:59]}  exd5 {[%clk 0:02:58]} 4. Nf3 {[%clk 0:03:00]}  Nf6 {[%clk 0:02:55]} 5. Bd3 {[%clk 0:02:59]}  Bd6 {[%clk 0:02:55]} 6. O-O {[%clk 0:02:59]}  O-O {[%clk 0:02:55]} 7. Bg5 {[%clk 0:03:00]}  h6 {[%clk 0:02:54]} 8. Bh4 {[%clk 0:02:59]}  Bg4 {[%clk 0:02:52]} 9. Nbd2 {[%clk 0:02:58]}  Nbd7 {[%clk 0:02:52]} 10. c4 {[%clk 0:02:58]}  dxc4 {[%clk 0:02:48]} 11. Nxc4 {[%clk 0:02:58]}  Be7 {[%clk 0:02:46]} 12. Re1 {[%clk 0:02:51]}  Re8 {[%clk 0:02:46]} 13. Ne3 {[%clk 0:02:39]}  Bh5 {[%clk 0:02:30]} 14. Qb3 {[%clk 0:02:21]}  Bxf3 {[%clk 0:02:27]} 15. gxf3 {[%clk 0:02:22]}  Nh5 {[%clk 0:02:03]} 16. Bg3 {[%clk 0:02:20]}  Nb6 {[%clk 0:01:57]} 17. Bg6 {[%clk 0:02:16]}  Nxg3 {[%clk 0:01:14]} 18. Qxf7+ {[%clk 0:02:17]}  Kh8 {[%clk 0:01:14]} 19. Qxe8+ {[%clk 0:02:17]}  Qxe8 {[%clk 0:01:14]} 20. Bxe8 {[%clk 0:02:18]}  Rxe8 {[%clk 0:01:01]} 21. hxg3 {[%clk 0:02:17]}  Bf6 {[%clk 0:01:02]} 22. Rad1 {[%clk 0:02:12]}  Rd8 {[%clk 0:01:00]} 23. b3 {[%clk 0:02:02]}  Kg8 {[%clk 0:00:58]} 24. d5 {[%clk 0:01:58]}  Kf7 {[%clk 0:00:58]} 25. f4 {[%clk 0:01:57]}  Rd7 {[%clk 0:00:50]} 26. Kg2 {[%clk 0:01:57]}  Nc8 {[%clk 0:00:51]} 27. Nc4 {[%clk 0:01:55]}  Ne7 {[%clk 0:00:50]} 28. d6 {[%clk 0:01:52]}  cxd6 {[%clk 0:00:47]} 29. Nxd6+ {[%clk 0:01:45]}  Kg6 {[%clk 0:00:47]} 30. Ne8 {[%clk 0:01:41]}  Rc7 {[%clk 0:00:22]} 31. Nxc7 {[%clk 0:01:39]} 1-0


[Site "https://www.chess.com"]

[Event "Titled Tuesday Blitz October 31 Late 2023"]
[White "Sivakumar, Shaaketh"]
[Black "Ilamparthi A R"]
[WhiteFideId "30940176"]
[BlackFideId "45015775"]
[WhiteElo "2593"]
[BlackElo "2932"]
[Result "1/2-1/2"]
[Round "4"]
[TimeControl "180+1"]
[Date "2023.10.31"]
[WhiteClock "0:00:55"]
[BlackClock "0:00:06"]
[Board "32"]

1. e4 {[%clk 0:03:00]}  c5 {[%clk 0:02:58]} 2. Nf3 {[%clk 0:02:54]}  Nc6 {[%clk 0:02:58]} 3. Bb5 {[%clk 0:02:51]}  g6 {[%clk 0:02:55]} 4. O-O {[%clk 0:02:50]}  Bg7 {[%clk 0:02:55]} 5. Re1 {[%clk 0:02:51]}  e5 {[%clk 0:02:54]} 6. c3 {[%clk 0:02:50]}  Nge7 {[%clk 0:02:52]} 7. b3 {[%clk 0:02:44]}  O-O {[%clk 0:02:52]} 8. Bb2 {[%clk 0:02:44]}  a6 {[%clk 0:02:50]} 9. Bf1 {[%clk 0:02:43]}  d5 {[%clk 0:02:49]} 10. exd5 {[%clk 0:02:38]}  Nxd5 {[%clk 0:02:50]} 11. c4 {[%clk 0:02:36]}  Nf4 {[%clk 0:02:49]} 12. Nxe5 {[%clk 0:02:36]}  Nxe5 {[%clk 0:02:45]} 13. Rxe5 {[%clk 0:02:35]}  Bxe5 {[%clk 0:02:42]} 14. Bxe5 {[%clk 0:02:36]}  Qg5 {[%clk 0:02:41]} 15. Bxf4 {[%clk 0:02:29]}  Qxf4 {[%clk 0:02:42]} 16. Nc3 {[%clk 0:02:29]}  Be6 {[%clk 0:02:42]} 17. g3 {[%clk 0:02:26]}  Qd4 {[%clk 0:02:40]} 18. Qf3 {[%clk 0:02:26]}  Qxd2 {[%clk 0:02:30]} 19. Ne4 {[%clk 0:02:24]}  Qd4 {[%clk 0:02:28]} 20. Rd1 {[%clk 0:02:23]}  Qg7 {[%clk 0:02:24]} 21. Nxc5 {[%clk 0:02:22]}  Bf5 {[%clk 0:02:01]} 22. Nxb7 {[%clk 0:02:20]}  h5 {[%clk 0:01:58]} 23. h3 {[%clk 0:02:17]}  Qe5 {[%clk 0:01:46]} 24. Rd5 {[%clk 0:02:13]}  Qa1 {[%clk 0:01:46]} 25. Rxf5 {[%clk 0:02:04]}  gxf5 {[%clk 0:01:47]} 26. Qxf5 {[%clk 0:02:01]}  Rae8 {[%clk 0:01:41]} 27. Nd6 {[%clk 0:01:55]}  Re5 {[%clk 0:01:26]} 28. Qf4 {[%clk 0:01:50]}  Re1 {[%clk 0:01:23]} 29. Kg2 {[%clk 0:01:50]}  Qe5 {[%clk 0:01:19]} 30. Qd2 {[%clk 0:01:35]}  Rd8 {[%clk 0:01:01]} 31. c5 {[%clk 0:01:35]}  h4 {[%clk 0:00:59]} 32. gxh4 {[%clk 0:01:26]}  Qg7+ {[%clk 0:00:53]} 33. Qg5 {[%clk 0:01:25]}  Re5 {[%clk 0:00:43]} 34. Qxg7+ {[%clk 0:01:22]}  Kxg7 {[%clk 0:00:43]} 35. b4 {[%clk 0:01:21]}  a5 {[%clk 0:00:44]} 36. a3 {[%clk 0:01:18]}  axb4 {[%clk 0:00:44]} 37. axb4 {[%clk 0:01:19]}  Rb8 {[%clk 0:00:44]} 38. c6 {[%clk 0:01:17]}  Rxb4 {[%clk 0:00:18]} 39. c7 {[%clk 0:01:16]}  Rc5 {[%clk 0:00:18]} 40. c8=Q {[%clk 0:01:16]}  Rxc8 {[%clk 0:00:19]} 41. Nxc8 {[%clk 0:01:17]}  Rxh4 {[%clk 0:00:19]} 42. Nd6 {[%clk 0:01:16]}  Kf6 {[%clk 0:00:19]} 43. f3 {[%clk 0:01:16]}  Rd4 {[%clk 0:00:19]} 44. Ne4+ {[%clk 0:01:17]}  Kf5 {[%clk 0:00:19]} 45. Bb5 {[%clk 0:01:14]}  Kf4 {[%clk 0:00:19]} 46. Nf2 {[%clk 0:01:13]}  f5 {[%clk 0:00:19]} 47. h4 {[%clk 0:01:09]}  Rd2 {[%clk 0:00:18]} 48. Bd3 {[%clk 0:00:53]}  Ke3 {[%clk 0:00:15]} 49. Bxf5 {[%clk 0:00:53]}  Rxf2+ {[%clk 0:00:14]} 50. Kg3 {[%clk 0:00:53]}  Rxf3+ {[%clk 0:00:14]} 51. Kg4 {[%clk 0:00:53]}  Rf1 {[%clk 0:00:13]} 52. h5 {[%clk 0:00:53]}  Kd4 {[%clk 0:00:13]} 53. Kg5 {[%clk 0:00:53]}  Ke5 {[%clk 0:00:13]} 54. h6 {[%clk 0:00:53]}  Rxf5+ {[%clk 0:00:12]} 55. Kg6 {[%clk 0:00:53]}  Rf1 {[%clk 0:00:08]} 56. h7 {[%clk 0:00:53]}  Rg1+ {[%clk 0:00:07]} 57. Kf7 {[%clk 0:00:54]}  Rh1 {[%clk 0:00:07]} 58. Kg8 {[%clk 0:00:54]}  Rg1+ {[%clk 0:00:07]} 59. Kf7 {[%clk 0:00:54]}  Rh1 {[%clk 0:00:06]} 60. Kg8 {[%clk 0:00:55]}  Rg1+ {[%clk 0:00:06]} 61. Kf7 {[%clk 0:00:55]} 1/2-1/2


[Site "https://www.chess.com"]

[Event "Titled Tuesday Blitz October 31 Late 2023"]
[White "Mikaelyan, Arman"]
[Black "Karttunen, Mika"]
[WhiteFideId "13304852"]
[BlackFideId "502081"]
[WhiteElo "2885"]
[BlackElo "2583"]
[Result "0-1"]
[Round "4"]
[TimeControl "180+1"]
[Date "2023.10.31"]
[WhiteClock "0:00:13"]
[BlackClock "0:00:21"]
[Board "35"]

1. d4 {[%clk 0:03:00]}  d5 {[%clk 0:02:57]} 2. Nf3 {[%clk 0:03:01]}  Nf6 {[%clk 0:02:56]} 3. c4 {[%clk 0:03:01]}  e6 {[%clk 0:02:56]} 4. g3 {[%clk 0:03:02]}  Bb4+ {[%clk 0:02:52]} 5. Bd2 {[%clk 0:03:01]}  a5 {[%clk 0:02:52]} 6. Bg2 {[%clk 0:03:01]}  dxc4 {[%clk 0:02:51]} 7. O-O {[%clk 0:03:01]}  Bxd2 {[%clk 0:02:50]} 8. Nbxd2 {[%clk 0:02:58]}  b5 {[%clk 0:02:49]} 9. a4 {[%clk 0:02:58]}  c6 {[%clk 0:02:46]} 10. Ne5 {[%clk 0:02:54]}  Ra6 {[%clk 0:02:44]} 11. b3 {[%clk 0:02:21]}  Qxd4 {[%clk 0:02:22]} 12. Nef3 {[%clk 0:02:10]}  Qd8 {[%clk 0:02:09]} 13. bxc4 {[%clk 0:02:09]}  b4 {[%clk 0:02:01]} 14. c5 {[%clk 0:02:06]}  O-O {[%clk 0:01:57]} 15. Nc4 {[%clk 0:02:05]}  Qxd1 {[%clk 0:01:51]} 16. Rfxd1 {[%clk 0:02:06]}  Nbd7 {[%clk 0:01:44]} 17. Nd4 {[%clk 0:02:04]}  Nxc5 {[%clk 0:01:40]} 18. Nxc6 {[%clk 0:02:04]}  Bd7 {[%clk 0:01:27]} 19. N6xa5 {[%clk 0:02:00]}  Bxa4 {[%clk 0:01:21]} 20. Rdb1 {[%clk 0:02:00]}  Rb8 {[%clk 0:01:07]} 21. Nb7 {[%clk 0:01:49]}  Bb5 {[%clk 0:00:42]} 22. Nca5 {[%clk 0:01:22]}  Nxb7 {[%clk 0:00:38]} 23. Bxb7 {[%clk 0:01:23]}  Ra7 {[%clk 0:00:35]} 24. Bf3 {[%clk 0:01:10]}  Be8 {[%clk 0:00:32]} 25. Nb3 {[%clk 0:00:56]}  Rxa1 {[%clk 0:00:31]} 26. Rxa1 {[%clk 0:00:57]}  Kf8 {[%clk 0:00:31]} 27. Ra7 {[%clk 0:00:56]}  Nd5 {[%clk 0:00:29]} 28. Kg2 {[%clk 0:00:44]}  Nc3 {[%clk 0:00:29]} 29. Rc7 {[%clk 0:00:41]}  Ba4 {[%clk 0:00:29]} 30. Nd2 {[%clk 0:00:33]}  Nd5 {[%clk 0:00:27]} 31. Ra7 {[%clk 0:00:30]}  Bc2 {[%clk 0:00:25]} 32. e4 {[%clk 0:00:27]}  Nc3 {[%clk 0:00:22]} 33. Rc7 {[%clk 0:00:27]}  Bd3 {[%clk 0:00:22]} 34. e5 {[%clk 0:00:25]}  Nd5 {[%clk 0:00:22]} 35. Bxd5 {[%clk 0:00:19]}  exd5 {[%clk 0:00:23]} 36. Nb3 {[%clk 0:00:20]}  Bc4 {[%clk 0:00:22]} 37. Nc5 {[%clk 0:00:21]}  Ke8 {[%clk 0:00:20]} 38. e6 {[%clk 0:00:21]}  fxe6 {[%clk 0:00:19]} 39. Nxe6 {[%clk 0:00:22]}  Rb6 {[%clk 0:00:17]} 40. Nd4 {[%clk 0:00:06]}  Kf8 {[%clk 0:00:17]} 41. Ra7 {[%clk 0:00:04]}  b3 {[%clk 0:00:17]} 42. Ra8+ {[%clk 0:00:04]}  Kf7 {[%clk 0:00:17]} 43. Ra7+ {[%clk 0:00:05]}  Kf6 {[%clk 0:00:17]} 44. Nxb3 {[%clk 0:00:02]}  Bxb3 {[%clk 0:00:18]} 45. f4 {[%clk 0:00:02]}  d4 {[%clk 0:00:18]} 46. Kf3 {[%clk 0:00:03]}  Bd5+ {[%clk 0:00:18]} 47. Ke2 {[%clk 0:00:03]}  Be4 {[%clk 0:00:18]} 48. Ra2 {[%clk 0:00:02]}  Rc6 {[%clk 0:00:18]} 49. Kd2 {[%clk 0:00:02]}  Rb6 {[%clk 0:00:17]} 50. Ke2 {[%clk 0:00:01]}  Rd6 {[%clk 0:00:17]} 51. Kd2 {[%clk 0:00:01]}  h5 {[%clk 0:00:16]} 52. Ra5 {[%clk 0:00:01]}  Rd5 {[%clk 0:00:16]} 53. Ra6+ {[%clk 0:00:02]}  Kf5 {[%clk 0:00:17]} 54. Ra7 {[%clk 0:00:02]}  g6 {[%clk 0:00:17]} 55. Rg7 {[%clk 0:00:02]}  Rc5 {[%clk 0:00:16]} 56. Rf7+ {[%clk 0:00:03]}  Ke6 {[%clk 0:00:16]} 57. Rd7 {[%clk 0:00:04]}  Rc2+ {[%clk 0:00:16]} 58. Kd1 {[%clk 0:00:04]}  d3 {[%clk 0:00:16]} 59. Rd4 {[%clk 0:00:03]}  Bf5 {[%clk 0:00:16]} 60. Ke1 {[%clk 0:00:04]}  Rxh2 {[%clk 0:00:16]} 61. Rd8 {[%clk 0:00:03]}  Rg2 {[%clk 0:00:17]} 62. Kf1 {[%clk 0:00:03]}  Rxg3 {[%clk 0:00:16]} 63. Kf2 {[%clk 0:00:04]}  Rg4 {[%clk 0:00:17]} 64. Kf3 {[%clk 0:00:05]}  Rh4 {[%clk 0:00:17]} 65. Re8+ {[%clk 0:00:05]}  Kd5 {[%clk 0:00:17]} 66. Re1 {[%clk 0:00:06]}  Kd4 {[%clk 0:00:17]} 67. Re8 {[%clk 0:00:05]}  Rh2 {[%clk 0:00:18]} 68. Rd8+ {[%clk 0:00:06]}  Kc3 {[%clk 0:00:18]} 69. Rc8+ {[%clk 0:00:07]}  Kd2 {[%clk 0:00:18]} 70. Re8 {[%clk 0:00:08]}  Re2 {[%clk 0:00:18]} 71. Ra8 {[%clk 0:00:07]}  Re3+ {[%clk 0:00:18]} 72. Kf2 {[%clk 0:00:08]}  Re4 {[%clk 0:00:18]} 73. Ra2+ {[%clk 0:00:07]}  Kc3 {[%clk 0:00:19]} 74. Kg3 {[%clk 0:00:06]}  d2 {[%clk 0:00:19]} 75. Ra3+ {[%clk 0:00:07]}  Kb4 {[%clk 0:00:19]} 76. Rd3 {[%clk 0:00:06]}  Re3+ {[%clk 0:00:19]} 77. Rxe3 {[%clk 0:00:07]}  d1=Q {[%clk 0:00:20]} 78. Re8 {[%clk 0:00:07]}  Qd3+ {[%clk 0:00:19]} 79. Kh2 {[%clk 0:00:08]}  Qd2+ {[%clk 0:00:19]} 80. Kg3 {[%clk 0:00:09]}  h4+ {[%clk 0:00:19]} 81. Kf3 {[%clk 0:00:08]}  Qd3+ {[%clk 0:00:19]} 82. Kf2 {[%clk 0:00:09]}  Qg3+ {[%clk 0:00:19]} 83. Kf1 {[%clk 0:00:09]}  Qxf4+ {[%clk 0:00:19]} 84. Kg2 {[%clk 0:00:09]}  Qg4+ {[%clk 0:00:20]} 85. Kh2 {[%clk 0:00:09]}  Qg3+ {[%clk 0:00:20]} 86. Kh1 {[%clk 0:00:10]}  Qf3+ {[%clk 0:00:19]} 87. Kh2 {[%clk 0:00:10]}  Qf4+ {[%clk 0:00:20]} 88. Kh1 {[%clk 0:00:10]}  Be4+ {[%clk 0:00:20]} 89. Kg1 {[%clk 0:00:11]}  Qg3+ {[%clk 0:00:21]} 90. Kf1 {[%clk 0:00:12]}  Bd3+ {[%clk 0:00:21]} 91. Re2 {[%clk 0:00:12]}  Bxe2+ {[%clk 0:00:21]} 92. Kxe2 {[%clk 0:00:13]} 0-1


[Site "https://www.chess.com"]

[Event "Titled Tuesday Blitz October 31 Late 2023"]
[White "Sanchez Alvares, Kelvin Antonio"]
[Black "Nazari, Arad"]
[WhiteFideId "3906680"]
[BlackFideId "12577324"]
[WhiteElo "2572"]
[BlackElo "2845"]
[Result "1-0"]
[Round "4"]
[TimeControl "180+1"]
[Date "2023.10.31"]
[WhiteClock "0:00:09"]
[BlackClock "0:00:06"]
[Board "39"]

1. e4 {[%clk 0:03:00]}  c5 {[%clk 0:02:59]} 2. Nf3 {[%clk 0:02:59]}  d6 {[%clk 0:03:00]} 3. d4 {[%clk 0:02:59]}  cxd4 {[%clk 0:03:00]} 4. Nxd4 {[%clk 0:02:59]}  Nf6 {[%clk 0:03:00]} 5. Nc3 {[%clk 0:02:58]}  a6 {[%clk 0:03:01]} 6. Bg5 {[%clk 0:02:58]}  Nbd7 {[%clk 0:03:00]} 7. f4 {[%clk 0:02:56]}  Qc7 {[%clk 0:02:50]} 8. Qf3 {[%clk 0:02:55]}  b5 {[%clk 0:02:50]} 9. Bd3 {[%clk 0:02:48]}  Qb6 {[%clk 0:02:45]} 10. Nb3 {[%clk 0:02:40]}  Bb7 {[%clk 0:02:45]} 11. a4 {[%clk 0:02:33]}  b4 {[%clk 0:02:40]} 12. a5 {[%clk 0:02:33]}  Qc7 {[%clk 0:02:33]} 13. Ne2 {[%clk 0:02:31]}  h6 {[%clk 0:02:32]} 14. Bh4 {[%clk 0:02:29]}  g5 {[%clk 0:02:32]} 15. fxg5 {[%clk 0:02:27]}  Ne5 {[%clk 0:02:33]} 16. Qe3 {[%clk 0:02:19]}  Nfg4 {[%clk 0:02:32]} 17. Qb6 {[%clk 0:02:15]}  Qxb6 {[%clk 0:02:23]} 18. axb6 {[%clk 0:02:14]}  Ng6 {[%clk 0:02:11]} 19. Bf2 {[%clk 0:01:56]}  Nxf2 {[%clk 0:02:05]} 20. Kxf2 {[%clk 0:01:55]}  hxg5 {[%clk 0:02:05]} 21. Na5 {[%clk 0:01:54]}  Rb8 {[%clk 0:02:03]} 22. Nxb7 {[%clk 0:01:52]}  Rxb7 {[%clk 0:02:04]} 23. Rxa6 {[%clk 0:01:50]}  e6 {[%clk 0:01:41]} 24. Bb5+ {[%clk 0:01:47]}  Ke7 {[%clk 0:01:41]} 25. Ra7 {[%clk 0:01:36]}  Rxa7 {[%clk 0:01:30]} 26. bxa7 {[%clk 0:01:33]}  Bg7 {[%clk 0:01:27]} 27. Ra1 {[%clk 0:01:17]}  Bxb2 {[%clk 0:01:12]} 28. a8=Q {[%clk 0:01:14]}  Rxa8 {[%clk 0:01:13]} 29. Rxa8 {[%clk 0:01:14]}  Ne5 {[%clk 0:01:12]} 30. Ra4 {[%clk 0:01:02]}  Ng4+ {[%clk 0:01:11]} 31. Kf3 {[%clk 0:00:46]}  Nxh2+ {[%clk 0:01:09]} 32. Kg3 {[%clk 0:00:43]}  Be5+ {[%clk 0:01:08]} 33. Kf2 {[%clk 0:00:40]}  Ng4+ {[%clk 0:01:08]} 34. Kf3 {[%clk 0:00:38]}  Nh2+ {[%clk 0:01:08]} 35. Ke3 {[%clk 0:00:38]}  Ng4+ {[%clk 0:01:08]} 36. Kd2 {[%clk 0:00:31]}  f5 {[%clk 0:00:59]} 37. exf5 {[%clk 0:00:30]}  exf5 {[%clk 0:01:00]} 38. Rxb4 {[%clk 0:00:29]}  f4 {[%clk 0:00:59]} 39. Bc6 {[%clk 0:00:28]}  Ne3 {[%clk 0:00:58]} 40. c4 {[%clk 0:00:21]}  g4 {[%clk 0:00:52]} 41. Kd3 {[%clk 0:00:20]}  Kf6 {[%clk 0:00:50]} 42. Be4 {[%clk 0:00:19]}  Nd1 {[%clk 0:00:45]} 43. Kd2 {[%clk 0:00:18]}  Ne3 {[%clk 0:00:42]} 44. Bd5 {[%clk 0:00:17]}  Nf1+ {[%clk 0:00:27]} 45. Kd3 {[%clk 0:00:15]}  Ne3 {[%clk 0:00:21]} 46. Rb8 {[%clk 0:00:15]}  Kg5 {[%clk 0:00:20]} 47. g3 {[%clk 0:00:14]}  Nd1 {[%clk 0:00:12]} 48. gxf4+ {[%clk 0:00:14]}  Bxf4 {[%clk 0:00:12]} 49. Rg8+ {[%clk 0:00:12]}  Kf5 {[%clk 0:00:12]} 50. Rf8+ {[%clk 0:00:11]}  Ke5 {[%clk 0:00:12]} 51. Nxf4 {[%clk 0:00:11]}  g3 {[%clk 0:00:13]} 52. Ne2 {[%clk 0:00:10]}  Nf2+ {[%clk 0:00:12]} 53. Ke3 {[%clk 0:00:10]}  Nd1+ {[%clk 0:00:12]} 54. Kf3 {[%clk 0:00:10]}  g2 {[%clk 0:00:13]} 55. Kxg2 {[%clk 0:00:10]}  Ne3+ {[%clk 0:00:13]} 56. Kf3 {[%clk 0:00:10]}  Nf1 {[%clk 0:00:07]} 57. Re8+ {[%clk 0:00:09]}  Kf5 {[%clk 0:00:06]} 58. Ng3+ {[%clk 0:00:09]} 1-0


[Site "https://www.chess.com"]